bitfinex/quotes_BTCUSD_20230901
["timestamp","ask_amount","ask_price","bid_price","bid_amount"]
[1693587470141,1.03321797,25829.0,25828.0,0.07678229]
[1693587470353,1.58649069,25829.0,25828.0,0.06678229]
[1693587470566,1.66889706,25829.0,25825.0,0.02]
[1693587470773,0.50057133,25827.0,25825.0,0.02]
[1693587470974,0.55285797,25826.0,25825.0,0.02]
[1693587471179,0.90505797,25826.0,25824.0,0.01]
[1693587471379,0.28577119,25825.0,25824.0,0.01]
[1693587471586,0.80209797,25825.0,25824.0,0.01]
[1693587471789,0.79411797,25825.0,25824.0,0.01]
[1693587471997,0.26039119,25825.0,25824.0,0.01]
[1693587472205,0.25637119,25825.0,25824.0,0.01]
[1693587472453,0.26687119,25825.0,25824.0,0.01]
[1693587472655,0.26621119,25825.0,25824.0,0.01]
[1693587473112,0.33893119,25825.0,25824.0,0.01]
[1693587473312,0.33959119,25825.0,25824.0,0.01]
[1693587473516,0.93714899,25825.0,25824.0,0.01]
[1693587473719,0.97014899,25825.0,25824.0,0.01]
[1693587473947,1.00308899,25825.0,25824.0,0.01]
[1693587474171,0.74143797,25825.0,25824.0,0.01]
[1693587474371,0.74377797,25825.0,25824.0,0.01]
[1693587474575,0.74437797,25825.0,25824.0,0.01]
[1693587474809,0.74485797,25825.0,25824.0,0.01]
[1693587475028,0.74473797,25825.0,25824.0,0.01]
[1693587475229,0.74461797,25825.0,25824.0,0.01]
[1693587475431,1.1415893,25825.0,25824.0,0.01]
[1693587475646,1.25849706,25825.0,25823.0,0.01]
[1693587475847,0.80580998,25824.0,25823.0,0.01]
[1693587476050,1.11972998,25824.0,25822.0,0.01]
[1693587476277,0.16577119,25823.0,25821.0,0.01]
[1693587476499,0.54718678,25822.0,25821.0,0.01]
[1693587476733,1.03215797,25822.0,25821.0,0.01]
[1693587476926,1.02855797,25822.0,25821.0,0.01]
[1693587477137,1.02687797,25822.0,25821.0,0.01]
[1693587477368,1.00503797,25822.0,25821.0,0.01]
[1693587477596,0.98763797,25822.0,25821.0,0.01]
[1693587477806,0.98067797,25822.0,25821.0,0.01]
[1693587478024,0.98283797,25822.0,25821.0,0.01]
[1693587478282,0.84009797,25822.0,25821.0,0.01]
[1693587478488,0.56308678,25822.0,25821.0,0.012]
[1693587478661,0.13058,25822.0,25821.0,0.012]
[1693587478859,0.12582,25822.0,25821.0,0.01]
[1693587479079,0.53942678,25822.0,25821.0,0.011]
[1693587479292,0.56630678,25822.0,25821.0,0.011]
[1693587479569,0.39292504,25822.0,25821.0,0.011]
[1693587479798,0.32404504,25822.0,25821.0,0.011]
[1693587480462,0.32404504,25822.0,25821.0,0.051]
[1693587480463,0.072,25822.0,25821.0,0.051]
[1693587480747,0.072,25822.0,25821.0,0.09954315]
[1693587480952,0.31025212,25822.0,25821.0,0.09954315]
[1693587481184,0.16572,25822.0,25821.0,0.09954315]
[1693587481389,1.03258349,25822.0,25821.0,0.02954315]
[1693587481680,0.02,25821.0,25819.0,0.01989699]
[1693587481807,0.71336842,25820.0,25819.0,0.01989699]
[1693587482231,1.48058842,25820.0,25819.0,0.01989699]
[1693587482481,1.44826842,25820.0,25819.0,0.01989699]
[1693587482689,1.45018842,25820.0,25819.0,0.01989699]
[1693587482908,1.45066842,25820.0,25819.0,0.01989699]
[1693587483116,1.45006842,25820.0,25819.0,0.01989699]
[1693587483291,1.28196678,25820.0,25819.0,0.01989699]
[1693587483497,1.28616678,25820.0,25819.0,0.01989699]
[1693587483696,1.32348678,25820.0,25819.0,0.02089699]
[1693587483932,1.32312678,25820.0,25819.0,0.02089699]
[1693587484161,1.32276678,25820.0,25819.0,0.02089699]
[1693587484365,1.32276678,25820.0,25819.0,0.02289699]
[1693587484366,1.55105508,25820.0,25819.0,0.02289699]
[1693587484571,1.60073508,25820.0,25819.0,0.02289699]
[1693587484794,2.12345508,25820.0,25819.0,0.02289699]
[1693587485007,2.16911508,25820.0,25819.0,0.02289699]
[1693587485219,2.17823508,25820.0,25819.0,0.02289699]
[1693587485432,2.20523508,25820.0,25819.0,0.02289699]
[1693587485644,2.16823508,25820.0,25819.0,0.02089699]
[1693587485851,2.17999508,25820.0,25819.0,0.02089699]
[1693587486054,2.19425208,25820.0,25819.0,0.01989699]
[1693587486253,2.22329208,25820.0,25819.0,0.01989699]
[1693587486452,2.22401208,25820.0,25819.0,0.01989699]
[1693587486660,2.23913208,25820.0,25819.0,0.01989699]
[1693587486864,2.22905208,25820.0,25819.0,0.01989699]
[1693587487068,2.60453208,25820.0,25819.0,0.00891839]
[1693587487281,2.63747208,25820.0,25819.0,0.00891839]
[1693587487501,3.10008037,25820.0,25819.0,0.00891839]
[1693587488180,3.10008037,25820.0,25815.0,0.01989699]
[1693587488181,0.7304,25816.0,25815.0,0.01989699]
[1693587488385,1.91890979,25816.0,25815.0,0.00774779]
[1693587488591,2.32821508,25816.0,25815.0,0.0028713]
[1693587488817,2.15644678,25816.0,25815.0,0.0028713]
[1693587489045,2.3246552,25816.0,25815.0,0.0028713]
[1693587489271,2.5942352,25816.0,25815.0,0.0028713]
[1693587489516,0.4977,25813.0,25812.0,0.01989699]
[1693587489735,0.4077,25809.0,25808.0,0.01489699]
[1693587489957,1.01488678,25809.0,25808.0,0.01489699]
[1693587490229,1.33488678,25809.0,25808.0,0.01489699]
[1693587490419,1.33488678,25809.0,25808.0,0.04402172]
[1693587490420,0.79460678,25809.0,25808.0,0.04402172]
[1693587490656,0.95158678,25809.0,25808.0,0.01489699]
[1693587490867,0.95020678,25809.0,25808.0,0.01489699]
[1693587491075,0.99412678,25809.0,25808.0,0.01489699]
[1693587491282,1.44766378,25809.0,25808.0,0.01489699]
[1693587491504,1.02314378,25809.0,25808.0,0.01489699]
[1693587491722,0.52320378,25809.0,25808.0,0.02489699]
[1693587491938,0.78276527,25809.0,25808.0,0.04431347]
[1693587492147,0.70008527,25809.0,25808.0,0.04431347]
[1693587492357,0.66408527,25809.0,25808.0,0.04431347]
[1693587492568,0.81324527,25809.0,25808.0,0.04431347]
[1693587492794,0.77160062,25809.0,25808.0,0.04431347]
[1693587493020,0.38847222,25812.0,25809.0,0.46885882]
[1693587493021,0.2515,25812.0,25809.0,0.46885882]
[1693587493236,0.00098704,25814.0,25813.0,0.01]
[1693587493453,0.00098704,25814.0,25813.0,0.07]
[1693587493662,0.06624,25819.0,25813.0,0.19]
[1693587493876,0.17633811,25822.0,25820.0,0.01]
[1693587494113,0.18167811,25822.0,25820.0,0.01]
[1693587494321,0.12384,25821.0,25820.0,0.01]
[1693587494525,0.12696,25821.0,25820.0,0.01]
[1693587494755,0.27012,25821.0,25820.0,0.01]
[1693587494971,0.34215183,25821.0,25820.0,0.01]
[1693587495185,0.31359183,25821.0,25820.0,0.01]
[1693587495417,0.30969183,25821.0,25820.0,0.01]
[1693587495618,0.30525183,25821.0,25820.0,0.01]
[1693587495802,0.69233861,25821.0,25820.0,0.01]
[1693587496061,0.69257861,25821.0,25820.0,0.01]
[1693587496282,0.52122678,25821.0,25820.0,0.011]
[1693587496489,0.064,25821.0,25820.0,0.011]
[1693587496949,0.41539037,25821.0,25820.0,0.03041073]
[1693587497172,0.43555037,25821.0,25820.0,0.03041073]
[1693587497382,0.43681037,25821.0,25820.0,0.03041073]
[1693587497586,0.40791037,25821.0,25820.0,0.011]
[1693587497796,0.79169715,25821.0,25820.0,0.011]
[1693587498009,0.84479715,25821.0,25820.0,0.011]
[1693587498210,0.84287715,25821.0,25820.0,0.011]
[1693587498417,0.84161715,25821.0,25820.0,0.011]
[1693587498618,0.84173715,25821.0,25820.0,0.011]
[1693587498818,0.84185715,25821.0,25820.0,0.011]
[1693587499029,0.84179715,25821.0,25820.0,0.011]
[1693587499244,0.84329715,25821.0,25820.0,0.011]
[1693587499477,0.84191715,25821.0,25820.0,0.011]
[1693587499684,0.84203715,25821.0,25820.0,0.011]
[1693587499887,0.84161715,25821.0,25820.0,0.011]
[1693587500089,0.83309715,25821.0,25820.0,0.011]
[1693587500281,0.84005715,25821.0,25820.0,0.011]
[1693587500485,0.83909715,25821.0,25820.0,0.011]
[1693587500824,0.84035715,25821.0,25820.0,0.011]
[1693587501040,0.732852,25821.0,25820.0,0.001]
[1693587501233,2.08390757,25821.0,25820.0,0.001]
[1693587501610,3.18061586,25821.0,25820.0,0.001]
[1693587501840,3.06088115,25821.0,25820.0,0.001]
[1693587502054,3.10600115,25821.0,25820.0,0.001]
[1693587502258,0.6404,25818.0,25814.0,0.01]
[1693587502460,0.08,25819.0,25815.0,0.01]
[1693587502461,0.8005,25816.0,25815.0,0.01]
[1693587502662,1.354012,25816.0,25815.0,0.01]
[1693587502866,1.374012,25816.0,25815.0,0.01]
[1693587503079,1.716852,25816.0,25815.0,0.01]
[1693587503270,1.709052,25816.0,25815.0,0.01]
[1693587503490,1.713372,25816.0,25810.0,0.07448303]
[1693587503688,1.02748678,25814.0,25810.0,0.01]
[1693587503819,0.1601,25811.0,25810.0,0.01]
[1693587504016,0.38708678,25811.0,25810.0,0.01]
[1693587504219,0.48932678,25811.0,25810.0,0.01]
[1693587504453,0.49052678,25811.0,25810.0,0.01]
[1693587504658,0.48896678,25811.0,25810.0,0.02947452]
[1693587505002,0.48008678,25811.0,25810.0,0.02947452]
[1693587505242,0.48008678,25811.0,25810.0,0.16395755]
[1693587505243,0.036,25811.0,25810.0,0.16395755]
[1693587505651,0.036,25811.0,25810.0,0.08947452]
[1693587505855,0.036,25811.0,25810.0,0.30183257]
[1693587506060,0.154988,25813.0,25812.0,0.05]
[1693587506261,0.154988,25813.0,25812.0,0.2701]
[1693587506773,0.154988,25813.0,25812.0,0.28956176]
[1693587507661,0.157988,25813.0,25812.0,0.37256176]
[1693587508438,0.003,25813.0,25812.0,0.37256176]
[1693587508770,0.007,25813.0,25812.0,0.76064854]
[1693587508967,0.007,25813.0,25812.0,0.85298443]
[1693587509667,0.007,25813.0,25812.0,0.91298443]
[1693587510149,0.007,25813.0,25812.0,1.05148827]
[1693587510349,0.007,25813.0,25812.0,1.41726661]
[1693587510714,0.007,25813.0,25812.0,1.6019384]
[1693587511318,0.007,25813.0,25812.0,1.30718752]
[1693587512436,0.007,25813.0,25812.0,1.12251573]
[1693587513176,0.007,25813.0,25812.0,0.89167599]
[1693587513607,0.007,25813.0,25812.0,0.83167599]
[1693587513799,0.43130168,25813.0,25812.0,0.71666417]
[1693587513957,0.93442846,25813.0,25812.0,0.03346176]
[1693587514155,0.75493375,25813.0,25812.0,0.03346176]
[1693587514403,0.91960498,25813.0,25812.0,0.03346176]
[1693587514612,0.92098498,25813.0,25812.0,0.03346176]
[1693587514814,0.64793801,25813.0,25812.0,0.03246176]
[1693587515039,0.55479801,25813.0,25812.0,0.02946176]
[1693587515442,0.55479801,25813.0,25812.0,0.12302804]
[1693587515443,0.17971123,25813.0,25812.0,0.12302804]
[1693587515586,0.24484,25815.0,25812.0,0.26091154]
[1693587515789,0.24484,25815.0,25814.0,0.01]
[1693587515790,0.1654,25815.0,25814.0,0.01]
[1693587515996,0.33190697,25815.0,25814.0,0.01]
[1693587516314,1.00831375,25815.0,25814.0,0.01]
[1693587516527,1.01383375,25815.0,25814.0,0.01]
[1693587516748,1.00927375,25815.0,25814.0,0.01]
[1693587516949,1.04227375,25815.0,25814.0,0.01]
[1693587517112,1.03267375,25815.0,25814.0,0.01]
[1693587517489,0.86707375,25815.0,25814.0,0.01]
[1693587517792,0.88549375,25815.0,25814.0,0.01]
[1693587517916,0.88843375,25815.0,25814.0,0.01]
[1693587518118,0.85177375,25815.0,25814.0,0.01]
[1693587518460,1.1517363,25815.0,25814.0,0.01]
[1693587518645,1.1570163,25815.0,25814.0,0.01]
[1693587518836,1.1574363,25815.0,25814.0,0.01]
[1693587519044,1.1576763,25815.0,25814.0,0.01]
[1693587519365,1.1606163,25815.0,25814.0,0.01]
[1693587519525,1.1607963,25815.0,25814.0,0.01]
[1693587519725,1.1600763,25815.0,25814.0,0.01]
[1693587519993,1.1577963,25815.0,25814.0,0.01]
[1693587520197,1.1485563,25815.0,25814.0,0.01]
[1693587520399,1.1478963,25815.0,25814.0,0.01]
[1693587520696,0.47668697,25815.0,25814.0,0.01]
[1693587520854,0.47668697,25815.0,25814.0,0.25508818]
[1693587520855,0.20250697,25815.0,25814.0,0.25508818]
[1693587521060,0.20450697,25815.0,25814.0,0.71723874]
[1693587521259,0.16850697,25815.0,25814.0,0.71723874]
[1693587521531,0.16850697,25815.0,25814.0,0.73627512]
[1693587521736,0.16750697,25815.0,25814.0,0.73427512]
[1693587521906,0.16750697,25815.0,25814.0,0.73327512]
[1693587521907,0.16850697,25815.0,25814.0,0.73327512]
[1693587522128,0.16850697,25815.0,25814.0,0.74127512]
[1693587522282,0.16850697,25815.0,25814.0,0.74027512]
[1693587522703,0.41650252,25815.0,25814.0,0.74427512]
[1693587522901,0.41650252,25815.0,25814.0,0.72427512]
[1693587523102,0.17150697,25815.0,25814.0,0.74427512]
[1693587523344,0.17150697,25815.0,25814.0,0.9756047]
[1693587523987,0.44468633,25815.0,25814.0,0.74427512]
[1693587524404,0.005,25815.0,25814.0,0.42530974]
[1693587524634,0.81634782,25815.0,25814.0,0.12383144]
[1693587524842,0.81634782,25815.0,25814.0,0.04103638]
[1693587524843,0.87307311,25815.0,25814.0,0.04103638]
[1693587525048,1.09046394,25815.0,25814.0,0.04103638]
[1693587525256,0.89642394,25815.0,25814.0,0.04103638]
[1693587525456,0.88608394,25815.0,25814.0,0.02903638]
[1693587525649,0.89522394,25815.0,25814.0,0.03003638]
[1693587525851,0.68813311,25815.0,25814.0,0.03103638]
[1693587526052,0.92222104,25815.0,25814.0,0.03003638]
[1693587526331,0.94742104,25815.0,25814.0,0.03003638]
[1693587526468,0.70015311,25815.0,25814.0,0.03003638]
[1693587526666,0.93255363,25815.0,25814.0,0.03003638]
[1693587526871,0.93525363,25815.0,25814.0,0.03003638]
[1693587527065,0.91965363,25815.0,25814.0,0.03003638]
[1693587527310,0.89387363,25815.0,25814.0,0.03003638]
[1693587527530,0.89855363,25815.0,25814.0,0.03003638]
[1693587527736,0.87033363,25815.0,25814.0,0.02903638]
[1693587527941,0.85525363,25815.0,25814.0,0.02903638]
[1693587528138,0.88787363,25815.0,25814.0,0.03003638]
[1693587528404,0.89021363,25815.0,25814.0,0.03003638]
[1693587528575,0.89705363,25815.0,25814.0,0.03003638]
[1693587528776,0.89717363,25815.0,25814.0,0.03003638]
[1693587529111,0.89585363,25815.0,25814.0,0.03003638]
[1693587529316,0.88715363,25815.0,25814.0,0.03003638]
[1693587529496,0.81911363,25815.0,25814.0,0.03003638]
[1693587529874,0.89519363,25815.0,25814.0,0.03003638]
[1693587530037,0.89897363,25815.0,25814.0,0.03003638]
[1693587530263,0.89855363,25815.0,25814.0,0.03003638]
[1693587530464,0.89963363,25815.0,25814.0,0.011]
[1693587530684,0.89837363,25815.0,25814.0,0.011]
[1693587531069,0.89891363,25815.0,25814.0,0.011]
[1693587531268,0.89777363,25815.0,25814.0,0.011]
[1693587531473,0.20646633,25815.0,25814.0,0.031]
[1693587532090,0.20646633,25815.0,25814.0,0.05010717]
[1693587533034,0.20646633,25815.0,25814.0,0.031]
[1693587533667,0.27534633,25815.0,25814.0,0.05003661]
[1693587533876,0.28770633,25815.0,25814.0,0.05003661]
[1693587534098,0.28092633,25815.0,25814.0,0.05003661]
[1693587534300,0.27276633,25815.0,25814.0,0.05003661]
[1693587534504,0.20646633,25815.0,25814.0,0.05003661]
[1693587534906,0.20646633,25815.0,25814.0,0.031]
[1693587535645,0.04,25815.0,25814.0,0.26548303]
[1693587535853,0.04,25815.0,25814.0,0.191]
[1693587536207,0.04,25815.0,25814.0,0.21010717]
[1693587536574,0.28827116,25815.0,25814.0,0.21010717]
[1693587537079,0.04,25815.0,25814.0,0.21010717]
[1693587538241,0.04,25815.0,25814.0,0.19010717]
[1693587538442,0.04,25815.0,25814.0,0.21010717]
[1693587540172,0.04,25815.0,25814.0,0.21089353]
[1693587540369,0.04,25815.0,25814.0,0.19089353]
[1693587543810,0.31436129,25815.0,25814.0,0.19089353]
[1693587544025,0.94075485,25815.0,25814.0,0.02089353]
[1693587544235,1.40853505,25815.0,25814.0,0.02010717]
[1693587544441,1.77891378,25815.0,25814.0,0.02010717]
[1693587544661,1.82666207,25815.0,25814.0,0.001]
[1693587544861,1.80440207,25815.0,25814.0,0.001]
[1693587545073,2.45103232,25815.0,25814.0,0.001]
[1693587545314,2.30625239,25815.0,25814.0,0.001]
[1693587545517,2.00871608,25815.0,25813.0,0.01]
[1693587545720,1.2135135,25814.0,25813.0,0.01]
[1693587545921,1.3421535,25814.0,25813.0,0.01]
[1693587546121,1.40201208,25814.0,25813.0,0.01]
[1693587546325,1.41521208,25814.0,25811.0,0.01]
[1693587546527,0.25937389,25813.0,25811.0,0.01]
[1693587546675,0.55355994,25812.0,25811.0,0.01]
[1693587546872,0.67625994,25812.0,25811.0,0.01]
[1693587547078,0.67613994,25812.0,25811.0,0.01]
[1693587547304,0.67577994,25812.0,25811.0,0.01]
[1693587547479,0.67505994,25812.0,25811.0,0.01]
[1693587547685,0.66761994,25812.0,25811.0,0.01]
[1693587547882,0.67169994,25812.0,25811.0,0.01]
[1693587548125,0.67229994,25812.0,25811.0,0.01]
[1693587548340,0.68411994,25812.0,25811.0,0.01]
[1693587548471,0.68489994,25812.0,25811.0,0.01]
[1693587548670,0.68417994,25812.0,25811.0,0.01]
[1693587548895,0.89698089,25812.0,25811.0,0.01]
[1693587549096,0.89732089,25812.0,25811.0,0.01]
[1693587549274,0.89624089,25812.0,25811.0,0.01]
[1693587549471,0.89732089,25812.0,25811.0,0.01]
[1693587549719,0.68871994,25812.0,25811.0,0.01]
[1693587550073,0.80058067,25812.0,25811.0,0.01]
[1693587550280,0.93654067,25812.0,25811.0,0.01]
[1693587550436,1.16848067,25812.0,25807.0,0.04]
[1693587550638,0.32130787,25811.0,25808.0,0.01]
[1693587550846,0.38708678,25810.0,25809.0,0.01]
[1693587551141,0.81611994,25810.0,25809.0,0.01]
[1693587551362,0.81479994,25810.0,25809.0,0.01]
[1693587551565,0.68249994,25810.0,25809.0,0.01]
[1693587551808,0.8864635,25810.0,25809.0,0.01]
[1693587552027,0.8850835,25810.0,25809.0,0.01]
[1693587552227,0.8795635,25810.0,25809.0,0.01]
[1693587552382,0.8671435,25810.0,25809.0,0.011]
[1693587552555,0.49586678,25810.0,25809.0,0.011]
[1693587552766,0.39408678,25810.0,25809.0,0.011]
[1693587552974,0.69437449,25810.0,25809.0,0.011]
[1693587553174,0.51954678,25810.0,25809.0,0.011]
[1693587553370,0.51618678,25810.0,25809.0,0.011]
[1693587553571,0.71796972,25810.0,25809.0,0.011]
[1693587553772,0.71262972,25810.0,25809.0,0.011]
[1693587554047,0.71160972,25810.0,25809.0,0.011]
[1693587554248,0.71448972,25810.0,25809.0,0.011]
[1693587554423,0.71496972,25810.0,25809.0,0.011]
[1693587554649,0.71490972,25810.0,25809.0,0.011]
[1693587554850,0.71478972,25810.0,25809.0,0.011]
[1693587555066,0.71406972,25810.0,25809.0,0.011]
[1693587555276,0.71352972,25810.0,25809.0,0.011]
[1693587555476,0.70662972,25810.0,25809.0,0.011]
[1693587555685,0.67820334,25810.0,25809.0,0.011]
[1693587555886,0.94776924,25810.0,25809.0,0.011]
[1693587556089,0.93858924,25810.0,25809.0,0.011]
[1693587556269,0.93756924,25810.0,25809.0,0.011]
[1693587556473,0.76769268,25810.0,25809.0,0.011]
[1693587556672,0.75653268,25810.0,25809.0,0.011]
[1693587556974,0.75245268,25810.0,25809.0,0.011]
[1693587557269,0.75269268,25810.0,25809.0,0.011]
[1693587557478,0.75329268,25810.0,25809.0,0.011]
[1693587557617,0.75365268,25810.0,25809.0,0.011]
[1693587557819,0.75173268,25810.0,25809.0,0.011]
[1693587558138,0.39408678,25810.0,25809.0,0.011]
[1693587558835,0.64991583,25810.0,25809.0,0.011]
[1693587559039,0.72761583,25810.0,25809.0,0.011]
[1693587559218,0.73145583,25810.0,25809.0,0.011]
[1693587559419,0.73001583,25810.0,25809.0,0.011]
[1693587559623,0.72935583,25810.0,25809.0,0.011]
[1693587559823,0.72503583,25810.0,25809.0,0.011]
[1693587560060,0.72479583,25810.0,25809.0,0.011]
[1693587560267,0.72539583,25810.0,25809.0,0.011]
[1693587560546,0.72443583,25810.0,25809.0,0.011]
[1693587560746,0.73085583,25810.0,25809.0,0.011]
[1693587560990,0.51234678,25810.0,25809.0,0.011]
[1693587561193,0.68586696,25810.0,25809.0,0.011]
[1693587561396,0.68754696,25810.0,25809.0,0.011]
[1693587561571,0.68730696,25810.0,25809.0,0.011]
[1693587561772,0.85086696,25810.0,25809.0,0.011]
[1693587562056,0.82482696,25810.0,25809.0,0.011]
[1693587562372,0.94206666,25810.0,25809.0,0.011]
[1693587562568,0.94032666,25810.0,25809.0,0.011]
[1693587562889,0.76050648,25810.0,25809.0,0.011]
[1693587563111,0.74424648,25810.0,25809.0,0.011]
[1693587563256,0.74274648,25810.0,25809.0,0.011]
[1693587563449,0.74136648,25810.0,25809.0,0.011]
[1693587563655,0.74238648,25810.0,25809.0,0.011]
[1693587563882,0.73998648,25810.0,25809.0,0.011]
[1693587564101,0.73236648,25810.0,25809.0,0.011]
[1693587564292,0.73188648,25810.0,25809.0,0.011]
[1693587564476,0.73614648,25810.0,25809.0,0.011]
[1693587564669,0.73752648,25810.0,25809.0,0.011]
[1693587564873,0.73722648,25810.0,25809.0,0.011]
[1693587565150,0.65473909,25810.0,25809.0,0.011]
[1693587565382,0.66823909,25810.0,25809.0,0.001]
[1693587565592,1.56031982,25810.0,25809.0,0.001]
[1693587565820,1.62489123,25810.0,25809.0,0.001]
[1693587566017,1.84244093,25810.0,25809.0,0.001]
[1693587566225,1.20083454,25810.0,25809.0,0.001]
[1693587566430,1.09782484,25810.0,25809.0,0.001]
[1693587566638,1.10052484,25810.0,25809.0,0.001]
[1693587566849,1.03804719,25810.0,25809.0,0.001]
[1693587567053,1.03798719,25810.0,25809.0,0.001]
[1693587567320,0.83521909,25810.0,25809.0,0.001]
[1693587567491,1.05186516,25810.0,25809.0,0.001]
[1693587567696,1.05066516,25810.0,25809.0,0.001]
[1693587567916,0.83311909,25810.0,25809.0,0.001]
[1693587568116,0.83353909,25810.0,25809.0,0.001]
[1693587568344,1.06273695,25810.0,25809.0,0.001]
[1693587568501,0.83179909,25810.0,25809.0,0.001]
[1693587568695,1.09415696,25810.0,25809.0,0.001]
[1693587569067,1.01011909,25810.0,25809.0,0.001]
[1693587569407,1.00807909,25810.0,25809.0,0.001]
[1693587569610,1.00375909,25810.0,25809.0,0.001]
[1693587569982,1.34875708,25810.0,25809.0,0.001]
[1693587570199,1.78329708,25810.0,25809.0,0.001]
[1693587570414,1.79853708,25810.0,25809.0,0.001]
[1693587570590,1.69264738,25810.0,25809.0,0.001]
[1693587570745,1.69108738,25810.0,25809.0,0.001]
[1693587570947,1.69684738,25810.0,25809.0,0.001]
[1693587571295,1.99962738,25810.0,25809.0,0.001]
[1693587571504,2.64591708,25810.0,25809.0,0.001]
[1693587571686,2.55022738,25810.0,25809.0,0.001]
[1693587571886,2.54644738,25810.0,25809.0,0.001]
[1693587572083,2.64159708,25810.0,25809.0,0.001]
[1693587572285,2.64497708,25810.0,25809.0,0.001]
[1693587572489,2.69051708,25810.0,25809.0,0.001]
[1693587572831,2.69681708,25810.0,25809.0,0.001]
[1693587573037,0.6404,25807.0,25804.0,0.01]
[1693587573248,0.1601,25805.0,25804.0,0.01]
[1693587573452,0.54718678,25805.0,25804.0,0.01]
[1693587573656,0.83998678,25805.0,25804.0,0.01]
[1693587573862,0.83578678,25805.0,25804.0,0.01]
[1693587574074,0.83338678,25805.0,25804.0,0.01]
[1693587574282,0.67660678,25805.0,25804.0,0.01]
[1693587574487,0.68782678,25805.0,25804.0,0.01]
[1693587574686,0.76712378,25805.0,25804.0,0.01]
[1693587574896,0.76782378,25805.0,25804.0,0.01]
[1693587575105,0.76806378,25805.0,25804.0,0.01]
[1693587575312,0.76992378,25805.0,25804.0,0.01]
[1693587575540,0.90264378,25805.0,25804.0,0.01]
[1693587575747,0.76998378,25805.0,25804.0,0.01]
[1693587575950,0.76956378,25805.0,25804.0,0.01]
[1693587576156,0.76950378,25805.0,25804.0,0.01]
[1693587576353,1.03858035,25805.0,25804.0,0.01]
[1693587576813,1.03798035,25805.0,25804.0,0.01]
[1693587577030,1.03678035,25805.0,25804.0,0.01]
[1693587577232,1.03654035,25805.0,25804.0,0.01]
[1693587577430,1.03396035,25805.0,25804.0,0.01]
[1693587577693,0.76518378,25805.0,25804.0,0.01]
[1693587577892,0.76566378,25805.0,25804.0,0.01]
[1693587578099,0.76548378,25805.0,25804.0,0.01]
[1693587578275,0.76668378,25805.0,25804.0,0.01]
[1693587578483,0.76512378,25805.0,25804.0,0.01]
[1693587578688,0.76872378,25805.0,25804.0,0.01]
[1693587578889,0.91152378,25805.0,25804.0,0.01]
[1693587579048,0.90504378,25805.0,25804.0,0.01]
[1693587579224,0.90168378,25805.0,25804.0,0.01]
[1693587579429,0.77034378,25805.0,25804.0,0.01]
[1693587579639,0.76878378,25805.0,25804.0,0.01]
[1693587579890,0.76824378,25805.0,25804.0,0.01]
[1693587580091,1.07031522,25805.0,25804.0,0.01]
[1693587580304,1.52241522,25805.0,25802.0,0.02989699]
[1693587580477,0.98137822,25804.0,25803.0,0.01]
[1693587580697,1.27117822,25804.0,25803.0,0.01]
[1693587580893,1.27009822,25804.0,25803.0,0.01]
[1693587581108,1.25677822,25804.0,25803.0,0.01]
[1693587581316,1.27513822,25804.0,25802.0,0.01989699]
[1693587581472,1.27248678,25804.0,25802.0,0.02989699]
[1693587581677,0.68002678,25804.0,25803.0,0.01]
[1693587581940,1.12339011,25804.0,25803.0,0.01]
[1693587582087,1.42179011,25804.0,25803.0,0.01]
[1693587582287,1.27203011,25804.0,25803.0,0.01]
[1693587582489,0.84621011,25804.0,25803.0,0.01]
[1693587582696,0.67080678,25804.0,25803.0,0.01]
[1693587582901,1.02967273,25804.0,25803.0,0.01]
[1693587583153,1.03457273,25804.0,25803.0,0.011]
[1693587583281,1.03457273,25804.0,25803.0,0.01]
[1693587583282,1.02987273,25804.0,25803.0,0.01]
[1693587583482,0.86828876,25804.0,25803.0,0.01]
[1693587583724,0.87870876,25804.0,25803.0,0.01]
[1693587584050,0.85414566,25804.0,25803.0,0.01]
[1693587584226,1.43160566,25804.0,25803.0,0.01]
[1693587584550,1.54831709,25804.0,25803.0,0.01]
[1693587584758,1.54357709,25804.0,25803.0,0.01]
[1693587585073,1.54267709,25804.0,25803.0,0.01]
[1693587585288,1.53853709,25804.0,25803.0,0.01]
[1693587585488,1.53979709,25804.0,25803.0,0.01]
[1693587585664,1.54429709,25804.0,25803.0,0.01]
[1693587585910,1.28082566,25804.0,25803.0,0.01]
[1693587586110,1.5414771,25804.0,25803.0,0.01]
[1693587586313,1.28124566,25804.0,25803.0,0.01]
[1693587586531,1.28058566,25804.0,25803.0,0.01]
[1693587586735,1.28070566,25804.0,25803.0,0.01]
[1693587586943,1.27962566,25804.0,25803.0,0.01]
[1693587587154,1.27968566,25804.0,25803.0,0.01]
[1693587587364,1.28082566,25804.0,25803.0,0.01]
[1693587587558,1.28082566,25804.0,25801.0,0.01989699]
[1693587587559,1.49108612,25804.0,25802.0,0.01]
[1693587587800,1.15524724,25804.0,25803.0,0.01]
[1693587588000,1.11414724,25804.0,25803.0,0.02837778]
[1693587588179,0.85252724,25804.0,25803.0,0.02837778]
[1693587588352,0.85036724,25804.0,25803.0,0.02837778]
[1693587588531,0.68744724,25804.0,25803.0,0.02837778]
[1693587588733,0.67994724,25804.0,25803.0,0.02837778]
[1693587588935,0.68060724,25804.0,25803.0,0.02837778]
[1693587589137,0.68138724,25804.0,25803.0,0.01837778]
[1693587589339,0.69378724,25804.0,25803.0,0.02837778]
[1693587589576,0.71100724,25804.0,25803.0,0.02837778]
[1693587589723,0.70912724,25804.0,25803.0,0.02837778]
[1693587589919,0.70288724,25804.0,25803.0,0.02837778]
[1693587590125,0.70628724,25804.0,25803.0,0.02837778]
[1693587590441,0.70904724,25804.0,25803.0,0.02837778]
[1693587590647,0.70526724,25804.0,25803.0,0.02837778]
[1693587590857,0.70370724,25804.0,25803.0,0.02837778]
[1693587591062,1.51731592,25804.0,25803.0,0.02837778]